[Event "European Online Club-ch-A 2021"]
[Site "Online"]
[Date "2021.03.27"]
[Round "8.10"]
[White "Fitzsimons, David"]
[Black "Kamsky, Gata"]
[Result "0-1"]
[ECO "B23"]
[WhiteElo "2324"]
[BlackElo "2665"]
[Annotator "ChessBase"]
[PlyCount "74"]
[EventDate "2021.03.27"]
[EventType "team-tourn"]
[EventCountry "NET"]
[SourceTitle "playchess.com"]
[Source "ChessBase"]
[SourceQuality "1"]
[TimeControl "900+5"]

1. e4 {[%emt 0:00:00]} c5 {[%emt 0:00:34]} 2. Nc3 {[%emt 0:00:05]} Nc6 {[%emt 0:00:02]} 3. Bb5 {[%emt 0:00:04]} Nd4 {[%emt 0:00:04]} 4. Nf3 {[%emt 0:00:02]} g6 {[%emt 0:00:44]} 5. Bc4 {[%emt 0:00:04]} Bg7 {[%emt 0:00:34]} 6. Nxd4 {[%emt 0:00:03]} cxd4 {[%emt 0:00:07]} 7. Qf3 {[%emt 0:00:02]} Nh6 {[%emt 0:00:49]} 8. Ne2 {[%emt 0:00:04]} O-O {[%emt 0:01:09]} 9. d3 {[%emt 0:00:02]} Ng4 {[%emt 0:00:27]} 10. Bb3 {[%emt 0:00:04]} d6 {[%emt 0:00:35]} 11. Qg3 {[%emt 0:00:05]} a5 {[%emt 0:00:46]} 12. a4 {[%emt 0:00:04]} Bd7 {[%emt 0:00:40]} 13. h3 {[%emt 0:00:51]} Nf6 {[%emt 0:00:04]} 14. Nxd4 {[%emt 0:00:21]} Nxe4 {[%emt 0:00:59]} 15. dxe4 {[%emt 0:00:02]} Bxd4 {[%emt 0:00:02]} 16. h4 {[%emt 0:00:01]} Be6 {[%emt 0:00:18]} 17. Bxe6 {[%emt 0:00:44]} fxe6 {[%emt 0:00:04]} 18. O-O {[%emt 0:00:22]} Qb6 {[%emt 0:00:24]} 19. c3 {[%emt 0:00:17]} Bg7 {[%emt 0:00:11]} 20. h5 {[%emt 0:00:09]} gxh5 {[%emt 0:00:07]} 21. Be3 {[%emt 0:01:39]} Qc6 {[%emt 0:00:11]} 22. f3 {[%emt 0:00:47]} Qe8 {[%emt 0:00:03]} 23. Ra3 {[%emt 0:01:23]} b5 {[%emt 0:00:26]} 24. Bh6 {[%emt 0:01:59]} Rf7 {[%emt 0:00:07]} 25. e5 {[%emt 0:01:19]} Kh8 {[%emt 0:00:13]} 26. Bf4 {[%emt 0:00:04]} Qf8 {[%emt 0:01:02]} 27. exd6 {[%emt 0:00:03]} Rxf4 {[%emt 0:00:20]} 28. dxe7 {[%emt 0:00:03]} Qf6 {[%emt 0:00:30]} 29. Rd1 {[%emt 0:00:03]} e5 {[%emt 0:00:19]} 30. axb5 {[%emt 0:00:40]} Qxe7 {[%emt 0:00:09]} 31. b4 {[%emt 0:00:15]} a4 {[%emt 0:00:30]} 32. Qh3 {[%emt 0:00:43]} e4 {[%emt 0:00:17]} 33. fxe4 {[%emt 0:00:04]} Qxe4 {[%emt 0:00:29]} 34. Qxh5 {[%emt 0:00:19]} Qe3+ {[%emt 0:00:20]} 35. Kh1 {[%emt 0:00:09]} Bf6 {[%emt 0:00:08]} 36. g4 {[%emt 0:02:22]} Qf3+ {[%emt 0:00:14]} 37. Kh2 {[%emt 0:00:06]} Qe2+ {[%emt 0:00:06]} 0-1

[Event "European Online Club-ch-A 2021"]
[Site "Online"]
[Date "2021.03.27"]
[Round "8.11"]
[White "Timofeev, Artyom"]
[Black "De Verdier, Michael"]
[Result "1-0"]
[ECO "D50"]
[WhiteElo "2594"]
[BlackElo "2291"]
[Annotator "ChessBase"]
[PlyCount "75"]
[EventDate "2021.03.27"]
[EventType "team-tourn"]
[EventCountry "NET"]
[SourceTitle "playchess.com"]
[Source "ChessBase"]
[SourceQuality "1"]
[TimeControl "900+5"]

1. d4 {[%emt 0:00:00]} d5 {[%emt 0:00:06]} 2. c4 {[%emt 0:00:03]} e6 {[%emt 0:00:02]} 3. Nc3 {[%emt 0:00:05]} Nf6 {[%emt 0:00:02]} 4. Bg5 {[%emt 0:00:05]} dxc4 {[%emt 0:00:01]} 5. e3 {[%emt 0:00:09]} a6 {[%emt 0:00:25]} 6. Bxc4 {[%emt 0:00:11]} b5 {[%emt 0:00:53]} 7. Be2 {[%emt 0:00:05]} Bb7 {[%emt 0:00:03]} 8. Bf3 {[%emt 0:00:03]} Ra7 {[%emt 0:00:23]} 9. Bxb7 {[%emt 0:00:11]} Rxb7 {[%emt 0:00:00]} 10. Qf3 {[%emt 0:00:02]} Rb6 {[%emt 0:00:07]} 11. Nge2 {[%emt 0:00:06]} Be7 {[%emt 0:00:31]} 12. Bxf6 {[%emt 0:00:17]} Bxf6 {[%emt 0:00:05]} 13. Ne4 {[%emt 0:00:02]} Nd7 {[%emt 0:00:29]} 14. Rc1 {[%emt 0:00:08]} O-O {[%emt 0:00:25]} 15. O-O {[%emt 0:00:03]} Be7 {[%emt 0:00:46]} 16. Nf4 {[%emt 0:00:07]} Qb8 {[%emt 0:02:04]} 17. Rc2 {[%emt 0:00:25]} Bd6 {[%emt 0:00:48]} 18. Rfc1 {[%emt 0:00:22]} b4 {[%emt 0:01:32]} 19. b3 {[%emt 0:00:07]} Rb5 {[%emt 0:00:58]} 20. Nd3 {[%emt 0:01:22]} e5 {[%emt 0:01:05]} 21. dxe5 {[%emt 0:01:36]} Nxe5 {[%emt 0:00:12]} 22. Nxe5 {[%emt 0:00:03]} Bxe5 {[%emt 0:00:30]} 23. g3 {[%emt 0:00:32]} Qb7 {[%emt 0:00:25]} 24. Kg2 {[%emt 0:00:07]} Rd8 {[%emt 0:00:13]} 25. Rc5 {[%emt 0:00:21]} f6 {[%emt 0:01:01]} 26. h4 {[%emt 0:00:27]} Rd5 {[%emt 0:00:28]} 27. Rc6 {[%emt 0:00:20]} Rd7 {[%emt 0:01:16]} 28. Nc5 {[%emt 0:00:53]} Rxc5 {[%emt 0:00:44]} 29. R1xc5 {[%emt 0:00:04]} Bd6 {[%emt 0:00:13]} 30. Qd5+ {[%emt 0:00:14]} Kf8 {[%emt 0:00:06]} 31. Rc4 {[%emt 0:00:17]} Ke7 {[%emt 0:00:08]} 32. Qg8 {[%emt 0:00:11]} g5 {[%emt 0:00:18]} 33. hxg5 {[%emt 0:00:05]} fxg5 {[%emt 0:00:02]} 34. Re4+ {[%emt 0:00:05]} Kf6 {[%emt 0:00:02]} 35. Re6+ {[%emt 0:00:16]} Kf5 {[%emt 0:00:04]} 36. e4+ {[%emt 0:00:02]} Kg4 {[%emt 0:00:03]} 37. f3+ {[%emt 0:00:01]} Kh5 {[%emt 0:00:04]} 38. Qe8+ {[%emt 0:00:01]} 1-0

[Event "European Online Club-ch-A 2021"]
[Site "Online"]
[Date "2021.03.27"]
[Round "8.12"]
[White "Czopor, Maciej"]
[Black "Sharafiev, Azat"]
[Result "1/2-1/2"]
[ECO "B36"]
[WhiteElo "2239"]
[BlackElo "2432"]
[Annotator "NA"]
[PlyCount "81"]
[EventDate "2021.03.27"]
[EventType "team-tourn"]
[EventCountry "NET"]
[SourceTitle "playchess.com"]
[Source "ChessBase"]
[SourceQuality "1"]
[TimeControl "900+5"]

1. e4 {[%emt 0:00:00]} c5 {[%emt 0:00:05]} 2. Nf3 {[%emt 0:00:02]} Nc6 {[%emt 0:00:02]} 3. d4 {[%emt 0:00:02]} cxd4 {[%emt 0:00:02]} 4. Nxd4 {[%emt 0:00:01]} g6 {[%emt 0:00:01]} 5. c4 {[%emt 0:00:04]} Nf6 {[%emt 0:00:03]} 6. Nc3 {[%emt 0:00:02]} Nxd4 {[%emt 0:00:01]} 7. Qxd4 {[%emt 0:00:01]} d6 {[%emt 0:00:01]} 8. Be2 {[%emt 0:00:08]} Bg7 {[%emt 0:00:02]} 9. Be3 {[%emt 0:00:02]} O-O {[%emt 0:00:03]} 10. Qd2 {[%emt 0:00:01]} Be6 {[%emt 0:00:02]} 11. O-O {[%emt 0:00:08]} a5 {[%emt 0:00:03]} 12. Rad1 {[%emt 0:01:27]} a4 {[%emt 0:00:05]} 13. Bd4 {[%emt 0:00:51]} Qa5 {[%emt 0:00:07]} 14. f4 {[%emt 0:00:37]} Rfc8 {[%emt 0:01:11]} 15. b3 {[%emt 0:00:03]} axb3 {[%emt 0:00:23]} 16. axb3 {[%emt 0:00:02]} Qb4 {[%emt 0:00:18]} 17. f5 {[%emt 0:04:59]} Bd7 {[%emt 0:00:09]} 18. Kh1 {[%emt 0:01:33]} Bc6 {[%emt 0:00:32]} 19. fxg6 {[%emt 0:01:12]} hxg6 {[%emt 0:00:03]} 20. Bxf6 {[%emt 0:00:33]} Bxf6 {[%emt 0:01:16]} 21. Nd5 {[%emt 0:00:06]} Qxd2 {[%emt 0:01:03]} 22. Nxf6+ {[%emt 0:00:02]} exf6 {[%emt 0:00:02]} 23. Rxd2 {[%emt 0:00:01]} Bxe4 {[%emt 0:00:03]} 24. Rxf6 {[%emt 0:00:59]} Ra1+ {[%emt 0:07:03]} 25. Rf1 {[%emt 0:00:46]} Rca8 {[%emt 0:00:02]} 26. Kg1 {[%emt 0:00:31]} R1a2 {[%emt 0:00:30]} 27. Rxa2 {[%emt 0:01:09]} Rxa2 {[%emt 0:00:02]} 28. Bf3 {[%emt 0:00:01]} d5 {[%emt 0:01:47]} 29. cxd5 {[%emt 0:00:16]} Bxf3 {[%emt 0:00:02]} 30. Rxf3 {[%emt 0:00:01]} Rd2 {[%emt 0:00:02]} 31. Rf6 {[%emt 0:00:42]} Rxd5 {[%emt 0:00:03]} 32. Rb6 {[%emt 0:00:01]} Rd7 {[%emt 0:00:01]} 33. Kf2 {[%emt 0:00:08]} Kg7 {[%emt 0:00:58]} 34. h4 {[%emt 0:00:24]} f5 {[%emt 0:00:22]} 35. Ke3 {[%emt 0:00:22]} Kh6 {[%emt 0:00:03]} 36. g3 {[%emt 0:00:14]} Kh5 {[%emt 0:00:06]} 37. Kf4 {[%emt 0:00:08]} Rd4+ {[%emt 0:00:33]} 38. Kf3 {[%emt 0:00:14]} Rd7 {[%emt 0:00:03]} 39. Kf4 {[%emt 0:00:03]} Rd4+ {[%emt 0:00:01]} 40. Kf3 {[%emt 0:00:01]} Rd7 {[%emt 0:00:02]} 41. Kf4 {[%emt 0:00:01]} 1/2-1/2

[Event "European Online Club-ch-A 2021"]
[Site "Online"]
[Date "2021.03.27"]
[Round "8.13"]
[White "Deac, Bogdan-Daniel"]
[Black "Zavgorodniy, Sergiy"]
[Result "1-0"]
[ECO "C41"]
[WhiteElo "2625"]
[BlackElo "2418"]
[Annotator "ChessBase"]
[PlyCount "51"]
[EventDate "2021.03.27"]
[EventType "team-tourn"]
[EventCountry "NET"]
[SourceTitle "playchess.com"]
[Source "ChessBase"]
[SourceQuality "1"]
[TimeControl "900+5"]

1. e4 {[%emt 0:00:00]} e5 {[%emt 0:00:03]} 2. Nf3 {[%emt 0:00:03]} d6 {[%emt 0:00:02]} 3. d4 {[%emt 0:00:01]} exd4 {[%emt 0:00:02]} 4. Nxd4 {[%emt 0:00:01]} Nf6 {[%emt 0:00:03]} 5. Nc3 {[%emt 0:00:01]} Be7 {[%emt 0:00:03]} 6. Bf4 {[%emt 0:00:02]} O-O {[%emt 0:00:05]} 7. Qd2 {[%emt 0:00:02]} c6 {[%emt 0:00:02]} 8. O-O-O {[%emt 0:00:02]} b5 {[%emt 0:00:03]} 9. f3 {[%emt 0:00:02]} b4 {[%emt 0:00:02]} 10. Na4 {[%emt 0:00:02]} c5 {[%emt 0:05:09]} 11. Nb5 {[%emt 0:02:27]} Nc6 {[%emt 0:00:04]} 12. Bxd6 {[%emt 0:02:50]} a6 {[%emt 0:05:58]} 13. Nc7 {[%emt 0:00:34]} Ra7 {[%emt 0:00:49]} 14. Bxe7 {[%emt 0:00:04]} Qxe7 {[%emt 0:00:07]} 15. Nd5 {[%emt 0:00:06]} Nxd5 {[%emt 0:00:41]} 16. Qxd5 {[%emt 0:05:54]} b3 {[%emt 0:00:04]} 17. axb3 {[%emt 0:01:38]} Nb4 {[%emt 0:00:20]} 18. Qxc5 {[%emt 0:00:02]} Qxc5 {[%emt 0:00:05]} 19. Nxc5 {[%emt 0:00:02]} Rc7 {[%emt 0:00:02]} 20. Rd4 {[%emt 0:00:05]} Na2+ {[%emt 0:00:23]} 21. Kb1 {[%emt 0:00:03]} Rxc5 {[%emt 0:00:02]} 22. Ra4 {[%emt 0:00:31]} f5 {[%emt 0:02:08]} 23. Bc4+ {[%emt 0:00:30]} Kh8 {[%emt 0:00:04]} 24. Re1 {[%emt 0:01:03]} fxe4 {[%emt 0:00:12]} 25. Rxe4 {[%emt 0:00:02]} Bf5 {[%emt 0:00:02]} 26. Re2 {[%emt 0:00:11]} 1-0

[Event "European Online Club-ch-A 2021"]
[Site "Online"]
[Date "2021.03.27"]
[Round "8.14"]
[White "Mitusov, Semen"]
[Black "Istratescu, Andrei"]
[Result "1/2-1/2"]
[ECO "B50"]
[WhiteElo "2297"]
[BlackElo "2553"]
[Annotator "ChessBase"]
[PlyCount "93"]
[EventDate "2021.03.27"]
[EventType "team-tourn"]
[EventCountry "NET"]
[SourceTitle "playchess.com"]
[Source "ChessBase"]
[SourceQuality "1"]
[TimeControl "900+5"]

1. e4 {[%emt 0:00:00]} c5 {[%emt 0:00:05]} 2. Nf3 {[%emt 0:00:03]} d6 {[%emt 0:00:02]} 3. c3 {[%emt 0:00:01]} Nf6 {[%emt 0:00:02]} 4. Bc4 {[%emt 0:00:15]} g6 {[%emt 0:00:27]} 5. e5 {[%emt 0:00:39]} dxe5 {[%emt 0:00:03]} 6. Nxe5 {[%emt 0:00:06]} e6 {[%emt 0:00:02]} 7. d4 {[%emt 0:00:21]} cxd4 {[%emt 0:00:02]} 8. cxd4 {[%emt 0:00:02]} Bg7 {[%emt 0:00:02]} 9. O-O {[%emt 0:00:25]} O-O {[%emt 0:00:03]} 10. Nc3 {[%emt 0:00:15]} Nc6 {[%emt 0:00:07]} 11. Be3 {[%emt 0:01:27]} Bd7 {[%emt 0:01:01]} 12. Qe2 {[%emt 0:00:46]} Ne7 {[%emt 0:00:17]} 13. Bg5 {[%emt 0:00:17]} h6 {[%emt 0:00:09]} 14. Bh4 {[%emt 0:00:10]} Nf5 {[%emt 0:00:05]} 15. Bxf6 {[%emt 0:00:44]} Bxf6 {[%emt 0:00:02]} 16. Rfd1 {[%emt 0:00:05]} Rc8 {[%emt 0:01:52]} 17. Bb3 {[%emt 0:00:55]} Qe7 {[%emt 0:01:48]} 18. d5 {[%emt 0:01:30]} Bxe5 {[%emt 0:00:28]} 19. Qxe5 {[%emt 0:00:19]} exd5 {[%emt 0:00:02]} 20. Qxe7 {[%emt 0:00:23]} Nxe7 {[%emt 0:00:03]} 21. Nxd5 {[%emt 0:00:03]} Nxd5 {[%emt 0:00:02]} 22. Rxd5 {[%emt 0:00:05]} Rc7 {[%emt 0:00:17]} 23. Re1 {[%emt 0:00:33]} Be6 {[%emt 0:00:08]} 24. Rb5 {[%emt 0:00:09]} Bxb3 {[%emt 0:00:02]} 25. Rxb3 {[%emt 0:00:05]} Rd8 {[%emt 0:00:04]} 26. g3 {[%emt 0:01:27]} Rd2 {[%emt 0:00:12]} 27. Re8+ {[%emt 0:00:38]} Kg7 {[%emt 0:00:05]} 28. Kg2 {[%emt 0:00:01]} b6 {[%emt 0:00:15]} 29. h4 {[%emt 0:00:10]} Rc6 {[%emt 0:00:07]} 30. Re7 {[%emt 0:01:45]} a5 {[%emt 0:00:16]} 31. Ree3 {[%emt 0:00:43]} Rcc2 {[%emt 0:00:23]} 32. Rf3 {[%emt 0:00:19]} Rxb2 {[%emt 0:00:03]} 33. Rbe3 {[%emt 0:00:19]} Rd7 {[%emt 0:00:10]} 34. a3 {[%emt 0:00:06]} b5 {[%emt 0:00:10]} 35. Re5 {[%emt 0:00:08]} Rb7 {[%emt 0:00:09]} 36. g4 {[%emt 0:00:20]} a4 {[%emt 0:00:06]} 37. g5 {[%emt 0:00:11]} Rc2 {[%emt 0:00:27]} 38. gxh6+ {[%emt 0:00:31]} Kxh6 {[%emt 0:00:03]} 39. h5 {[%emt 0:00:01]} Rc6 {[%emt 0:00:20]} 40. hxg6 {[%emt 0:00:13]} Rxg6+ {[%emt 0:00:02]} 41. Kf1 {[%emt 0:00:01]} Kg7 {[%emt 0:00:10]} 42. Rf4 {[%emt 0:00:08]} Rf6 {[%emt 0:00:33]} 43. Rg4+ {[%emt 0:00:31]} Kf8 {[%emt 0:00:09]} 44. Re3 {[%emt 0:00:12]} b4 {[%emt 0:00:14]} 45. axb4 {[%emt 0:00:19]} Rfb6 {[%emt 0:00:02]} 46. b5 {[%emt 0:00:01]} Rxb5 {[%emt 0:00:05]} 47. Rxa4 {[%emt 0:00:05]} 1/2-1/2

[Event "European Online Club-ch-A 2021"]
[Site "Online"]
[Date "2021.03.27"]
[Round "8.15"]
[White "Marin, Mihail"]
[Black "Vovk, Orest"]
[Result "1-0"]
[ECO "B00"]
[WhiteElo "2502"]
[BlackElo "2315"]
[Annotator "ChessBase"]
[PlyCount "81"]
[EventDate "2021.03.27"]
[EventType "team-tourn"]
[EventCountry "NET"]
[SourceTitle "playchess.com"]
[Source "ChessBase"]
[SourceQuality "1"]
[TimeControl "900+5"]

1. d4 {[%emt 0:00:00]} h6 {[%emt 0:00:09]} 2. e4 {[%emt 0:00:09]} g5 {[%emt 0:00:05]} 3. Bd3 {[%emt 0:00:02]} Bg7 {[%emt 0:00:02]} 4. c3 {[%emt 0:00:02]} d6 {[%emt 0:00:02]} 5. Ne2 {[%emt 0:00:03]} c6 {[%emt 0:00:05]} 6. Ng3 {[%emt 0:00:13]} Nf6 {[%emt 0:00:04]} 7. h4 {[%emt 0:00:09]} g4 {[%emt 0:00:48]} 8. h5 {[%emt 0:00:05]} e5 {[%emt 0:00:21]} 9. Na3 {[%emt 0:00:09]} b5 {[%emt 0:00:40]} 10. Nc2 {[%emt 0:00:05]} Bb7 {[%emt 0:00:23]} 11. Ne3 {[%emt 0:00:07]} Nbd7 {[%emt 0:01:06]} 12. Nxg4 {[%emt 0:00:51]} Nxg4 {[%emt 0:00:03]} 13. Qxg4 {[%emt 0:00:03]} Qf6 {[%emt 0:00:50]} 14. Nf5 {[%emt 0:00:23]} Bf8 {[%emt 0:00:05]} 15. O-O {[%emt 0:00:19]} O-O-O {[%emt 0:00:15]} 16. a4 {[%emt 0:00:06]} b4 {[%emt 0:00:08]} 17. a5 {[%emt 0:00:07]} a6 {[%emt 0:00:34]} 18. Qe2 {[%emt 0:00:34]} Nb8 {[%emt 0:01:37]} 19. Be3 {[%emt 0:00:04]} Rg8 {[%emt 0:00:42]} 20. cxb4 {[%emt 0:00:24]} d5 {[%emt 0:00:35]} 21. exd5 {[%emt 0:00:36]} Rxd5 {[%emt 0:00:19]} 22. dxe5 {[%emt 0:07:16]} Rxe5 {[%emt 0:01:33]} 23. Ng3 {[%emt 0:00:03]} Bxb4 {[%emt 0:05:35]} 24. Bd4 {[%emt 0:00:33]} Rxe2 {[%emt 0:00:46]} 25. Bxf6 {[%emt 0:00:03]} Rd2 {[%emt 0:00:02]} 26. Bf5+ {[%emt 0:00:13]} Nd7 {[%emt 0:00:01]} 27. Rad1 {[%emt 0:00:13]} Kc7 {[%emt 0:00:17]} 28. Rxd2 {[%emt 0:00:09]} Nxf6 {[%emt 0:00:03]} 29. Re2 {[%emt 0:00:14]} c5 {[%emt 0:00:04]} 30. Re7+ {[%emt 0:00:06]} Kb8 {[%emt 0:00:02]} 31. Rxf7 {[%emt 0:00:06]} Ne8 {[%emt 0:00:09]} 32. Rd1 {[%emt 0:00:16]} Nc7 {[%emt 0:00:06]} 33. Be4 {[%emt 0:00:32]} Bc8 {[%emt 0:00:05]} 34. Nf5 {[%emt 0:00:21]} Be6 {[%emt 0:00:03]} 35. Rf6 {[%emt 0:00:14]} c4 {[%emt 0:00:09]} 36. Nd4 {[%emt 0:00:09]} Bd7 {[%emt 0:00:05]} 37. Rf7 {[%emt 0:00:07]} Ba4 {[%emt 0:00:04]} 38. Rc1 {[%emt 0:00:23]} Rg4 {[%emt 0:00:06]} 39. Rxc4 {[%emt 0:00:28]} Rxe4 {[%emt 0:00:04]} 40. Rxb4+ {[%emt 0:00:05]} Kc8 {[%emt 0:00:06]} 41. Rxa4 {[%emt 0:00:10]} 1-0

[Event "European Online Club-ch-A 2021"]
[Site "Online"]
[Date "2021.03.27"]
[Round "8.16"]
[White "Hulka, Valentyn"]
[Black "Costachi, Mihnea"]
[Result "1/2-1/2"]
[ECO "C72"]
[WhiteElo "2089"]
[BlackElo "2471"]
[Annotator "ChessBase"]
[PlyCount "52"]
[EventDate "2021.03.27"]
[EventType "team-tourn"]
[EventCountry "NET"]
[SourceTitle "playchess.com"]
[Source "ChessBase"]
[SourceQuality "1"]
[TimeControl "900+5"]

1. e4 {[%emt 0:00:00]} e5 {[%emt 0:00:03]} 2. Nf3 {[%emt 0:00:02]} Nc6 {[%emt 0:00:02]} 3. Bb5 {[%emt 0:00:02]} a6 {[%emt 0:00:01]} 4. Ba4 {[%emt 0:00:01]} d6 {[%emt 0:00:01]} 5. O-O {[%emt 0:00:08]} Bd7 {[%emt 0:00:03]} 6. c4 {[%emt 0:00:19]} g6 {[%emt 0:00:07]} 7. d4 {[%emt 0:00:31]} Bg7 {[%emt 0:00:04]} 8. Bg5 {[%emt 0:00:37]} f6 {[%emt 0:00:12]} 9. Be3 {[%emt 0:00:04]} Nh6 {[%emt 0:00:02]} 10. h3 {[%emt 0:00:06]} O-O {[%emt 0:00:05]} 11. Qd2 {[%emt 0:00:08]} Nf7 {[%emt 0:00:04]} 12. Nc3 {[%emt 0:00:03]} Nxd4 {[%emt 0:01:09]} 13. Nxd4 {[%emt 0:00:33]} exd4 {[%emt 0:00:01]} 14. Bxd4 {[%emt 0:00:04]} Bxa4 {[%emt 0:00:02]} 15. Nxa4 {[%emt 0:00:02]} Ne5 {[%emt 0:00:26]} 16. Bxe5 {[%emt 0:01:31]} fxe5 {[%emt 0:00:23]} 17. c5 {[%emt 0:00:54]} dxc5 {[%emt 0:00:23]} 18. Qxd8 {[%emt 0:00:10]} Rfxd8 {[%emt 0:02:35]} 19. Nxc5 {[%emt 0:00:04]} Bf8 {[%emt 0:00:32]} 20. Ne6 {[%emt 0:00:34]} Rdc8 {[%emt 0:00:45]} 21. Rfd1 {[%emt 0:01:27]} Bd6 {[%emt 0:00:05]} 22. Rac1 {[%emt 0:00:02]} h6 {[%emt 0:00:49]} 23. Nc5 {[%emt 0:00:49]} Rcb8 {[%emt 0:00:34]} 24. Ne6 {[%emt 0:01:10]} Rc8 {[%emt 0:00:16]} 25. Nc5 {[%emt 0:00:19]} Rcb8 {[%emt 0:01:21]} 26. Ne6 {[%emt 0:01:36]} Rc8 {[%emt 0:00:09]} 1/2-1/2

[Event "European Online Club-ch-A 2021"]
[Site "Online"]
[Date "2021.03.27"]
[Round "8.17"]
[White "Hera, Imre Jr."]
[Black "Jakubowski, Krzysztof"]
[Result "1-0"]
[ECO "A07"]
[WhiteElo "2610"]
[BlackElo "2497"]
[Annotator "ChessBase"]
[PlyCount "35"]
[EventDate "2021.03.27"]
[EventType "team-tourn"]
[EventCountry "NET"]
[SourceTitle "playchess.com"]
[Source "ChessBase"]
[SourceQuality "1"]
[TimeControl "900+5"]

1. Nf3 {[%emt 0:00:00]} d5 {[%emt 0:00:04]} 2. g3 {[%emt 0:00:03]} Nf6 {[%emt 0:00:02]} 3. Bg2 {[%emt 0:00:02]} Bf5 {[%emt 0:00:03]} 4. O-O {[%emt 0:00:06]} e6 {[%emt 0:00:03]} 5. d3 {[%emt 0:00:02]} h6 {[%emt 0:00:03]} 6. Nfd2 {[%emt 0:00:02]} Bh7 {[%emt 0:00:14]} 7. e4 {[%emt 0:00:05]} Be7 {[%emt 0:00:11]} 8. Nc3 {[%emt 0:00:03]} c5 {[%emt 0:00:42]} 9. exd5 {[%emt 0:01:55]} exd5 {[%emt 0:00:06]} 10. Qf3 {[%emt 0:00:01]} d4 {[%emt 0:00:06]} 11. Qxb7 {[%emt 0:00:36]} dxc3 {[%emt 0:00:06]} 12. bxc3 {[%emt 0:00:13]} O-O {[%emt 0:00:12]} 13. Qxa8 {[%emt 0:00:03]} Qa5 {[%emt 0:00:06]} 14. Qb7 {[%emt 0:01:08]} Qxc3 {[%emt 0:00:50]} 15. Rb1 {[%emt 0:01:29]} Nbd7 {[%emt 0:00:09]} 16. Qb3 {[%emt 0:00:14]} Qa5 {[%emt 0:00:12]} 17. Nc4 {[%emt 0:00:02]} Qa6 {[%emt 0:00:11]} 18. Re1 {[%emt 0:00:15]} 1-0

[Event "European Online Club-ch-A 2021"]
[Site "Online"]
[Date "2021.03.27"]
[Round "8.18"]
[White "Schmidek, Emil"]
[Black "Nemeth, Miklos"]
[Result "1/2-1/2"]
[ECO "E46"]
[WhiteElo "2402"]
[BlackElo "2488"]
[Annotator "ChessBase"]
[PlyCount "121"]
[EventDate "2021.03.27"]
[EventType "team-tourn"]
[EventCountry "NET"]
[SourceTitle "playchess.com"]
[Source "ChessBase"]
[SourceQuality "1"]
[TimeControl "900+5"]

1. d4 {[%emt 0:00:00]} Nf6 {[%emt 0:00:05]} 2. c4 {[%emt 0:00:03]} e6 {[%emt 0:00:02]} 3. Nc3 {[%emt 0:00:00]} Bb4 {[%emt 0:00:02]} 4. e3 {[%emt 0:00:01]} O-O {[%emt 0:00:03]} 5. Nge2 {[%emt 0:00:02]} c6 {[%emt 0:00:11]} 6. a3 {[%emt 0:00:02]} Ba5 {[%emt 0:00:12]} 7. c5 {[%emt 0:00:01]} d5 {[%emt 0:00:10]} 8. cxd6 {[%emt 0:00:03]} Qxd6 {[%emt 0:00:10]} 9. b4 {[%emt 0:00:01]} Bc7 {[%emt 0:00:06]} 10. g3 {[%emt 0:00:01]} e5 {[%emt 0:00:14]} 11. Bg2 {[%emt 0:00:08]} a5 {[%emt 0:00:51]} 12. b5 {[%emt 0:00:44]} exd4 {[%emt 0:00:26]} 13. Nxd4 {[%emt 0:01:00]} Rd8 {[%emt 0:01:07]} 14. bxc6 {[%emt 0:01:15]} bxc6 {[%emt 0:00:03]} 15. Ncb5 {[%emt 0:03:14]} Qe7 {[%emt 0:00:38]} 16. Nxc7 {[%emt 0:00:12]} Qxc7 {[%emt 0:00:03]} 17. O-O {[%emt 0:00:19]} Ra6 {[%emt 0:02:31]} 18. Qc2 {[%emt 0:00:25]} c5 {[%emt 0:00:19]} 19. Nb5 {[%emt 0:01:50]} Qe7 {[%emt 0:00:03]} 20. Bb2 {[%emt 0:00:22]} Rb6 {[%emt 0:00:09]} 21. a4 {[%emt 0:00:44]} Na6 {[%emt 0:00:12]} 22. Rac1 {[%emt 0:01:13]} Bd7 {[%emt 0:02:53]} 23. Rfd1 {[%emt 0:02:54]} Bxb5 {[%emt 0:00:05]} 24. Rxd8+ {[%emt 0:00:11]} Qxd8 {[%emt 0:00:04]} 25. axb5 {[%emt 0:00:02]} Rxb5 {[%emt 0:00:43]} 26. Bf1 {[%emt 0:00:11]} Rb6 {[%emt 0:00:34]} 27. Bxa6 {[%emt 0:01:58]} Rxa6 {[%emt 0:00:03]} 28. Qxc5 {[%emt 0:00:01]} h6 {[%emt 0:00:45]} 29. Bd4 {[%emt 0:00:17]} a4 {[%emt 0:00:51]} 30. Qf5 {[%emt 0:00:06]} Ra8 {[%emt 0:00:19]} 31. Bxf6 {[%emt 0:00:07]} Qxf6 {[%emt 0:00:09]} 32. Rc8+ {[%emt 0:00:02]} Rxc8 {[%emt 0:00:04]} 33. Qxc8+ {[%emt 0:00:01]} Kh7 {[%emt 0:00:03]} 34. Qc2+ {[%emt 0:00:01]} g6 {[%emt 0:00:05]} 35. Qxa4 {[%emt 0:00:02]} h5 {[%emt 0:00:11]} 36. Qd4 {[%emt 0:00:03]} Qf5 {[%emt 0:00:12]} 37. Kg2 {[%emt 0:00:05]} Kg8 {[%emt 0:00:07]} 38. e4 {[%emt 0:00:10]} Qe6 {[%emt 0:00:04]} 39. Qd5 {[%emt 0:00:03]} Qf6 {[%emt 0:00:10]} 40. h4 {[%emt 0:00:13]} Kg7 {[%emt 0:00:10]} 41. Qd3 {[%emt 0:00:01]} Qe5 {[%emt 0:00:16]} 42. Qd5 {[%emt 0:00:02]} Qf6 {[%emt 0:00:02]} 43. Qc4 {[%emt 0:00:09]} Qe5 {[%emt 0:00:11]} 44. Qe2 {[%emt 0:00:02]} Kh7 {[%emt 0:00:10]} 45. Qf3 {[%emt 0:00:08]} Kg7 {[%emt 0:00:08]} 46. Qf4 {[%emt 0:00:02]} Qe6 {[%emt 0:00:07]} 47. Kf3 {[%emt 0:00:10]} Qb3+ {[%emt 0:00:06]} 48. Qe3 {[%emt 0:00:02]} Qd1+ {[%emt 0:00:03]} 49. Kg2 {[%emt 0:00:08]} Qd6 {[%emt 0:00:21]} 50. Qf4 {[%emt 0:00:07]} Qe6 {[%emt 0:00:03]} 51. e5 {[%emt 0:00:04]} Qd5+ {[%emt 0:00:06]} 52. Kh2 {[%emt 0:00:02]} Qe6 {[%emt 0:00:03]} 53. Kg1 {[%emt 0:00:07]} Qc6 {[%emt 0:00:06]} 54. f3 {[%emt 0:00:10]} Qc5+ {[%emt 0:00:11]} 55. Kh1 {[%emt 0:00:05]} Qf2 {[%emt 0:00:21]} 56. Qf6+ {[%emt 0:00:07]} Kg8 {[%emt 0:00:05]} 57. Qf4 {[%emt 0:00:05]} Qf1+ {[%emt 0:00:06]} 58. Kh2 {[%emt 0:00:01]} Qf2+ {[%emt 0:00:02]} 59. Kh1 {[%emt 0:00:01]} Qf1+ {[%emt 0:00:02]} 60. Kh2 {[%emt 0:00:01]} Qf2+ {[%emt 0:00:02]} 61. Kh1 {[%emt 0:00:02]} 1/2-1/2